Workbook

Sheet Master Sheet
A1: Government Senior Secondary School, Deogarh (Rajsamand)
A2: GA 55A Offline
A3: Session | B3: 2019-20 | C3: DDO CODE:: | D3: 26887
A4: Employee Name | B4: Designation | C4: Employee ID | D4: Pay Scale | E4: NPS/GPF
A5: Ashwini Kumar | B5: Lecturer | C5: RJNA12345678910 | D5: L-12 | E5: GPF
A6: GPF/PRAN Number | B6: Account No | C6: PAN No. | D6: TAN No | E6: Probation
A7: 12345678910 | B7: 1234567891011 | C7: ABCD1234E | D7: ABCD1234E | E7: NO
A8: March Basic | B8: Handi. All. | C8: Wash All. | D8: CCA Amount | E8: Surrender Month
A9: 69200 | E9: November
A10: Ot. Allow 1 | B10: Ot. Allow 2 | C10: Ot. Allow 3 | D10: Bonus | E10: Bonus Months
D11: NO
A12: If Basic Changed Month | B12: Changed Basic | C12: July Basic Incriment Other Than 7th Pay | D12: Mobile No | E12: SI No
D13: 9024823712 | E13: 12345678

Sheet DA HRA RATE
A1: ='Master Sheet'!A1 -> Government Senior Secondary School, Deogarh (Rajsamand)
A2: DA and HRA Rates Monthwise
A4: Sr.No | B4: Month | C4: DA Rate | D4: HRA Rate
A5: 3 | B5: March | C5: 12.00% | D5: 8.00%
A6: 4 | B6: April | C6: 12.00% | D6: 8.00%
A7: 5 | B7: May | C7: 12.00% | D7: 8.00%
A8: 6 | B8: June | C8: 12.00% | D8: 8.00%
A9: 7 | B9: July | C9: 12.00% | D9: 8.00%
A10: 8 | B10: August | C10: 12.00% | D10: 8.00%
A11: 9 | B11: September | C11: 12.00% | D11: 8.00%
A12: 10 | B12: October | C12: 12.00% | D12: 8.00%
A13: 11 | B13: November | C13: 12.00% | D13: 8.00%
A14: 12 | B14: December | C14: 12.00% | D14: 8.00%
A15: 1 | B15: January | C15: 12.00% | D15: 8.00%
A16: 2 | B16: February | C16: 12.00% | D16: 8.00%

Sheet Deductions
A1: ='Master Sheet'!A1 -> Government Senior Secondary School, Deogarh (Rajsamand)
A2: Deductions Detail
A4: Deduction Name | B4: Deduction Amount | C4: If Changed than Month | D4: Changed Amount
A5: GPF | B5: 5100 | C5: July | D5: 5500
A6: GPF Loan | B6: 100 | C6: November | D6: 200
A7: RPMF/RGHS | B7: 700 | C7: November | D7: 800
A8: SIP | B8: 3000
A9: SIL | B9: 5000 | C9: November | D9: 6000
A10: SII | B10: 100 | C10: November | D10: 200
A11: LIC | B11: 100 | C11: November | D11: 200
A12: CM Corona
A13: Other Ded.
A15: Itax Amount
A16: Sr.No | B16: Month | C16: Itax Amount
A17: 3 | B17: March | C17: 101
A18: 4 | B18: April | C18: 102
A19: 5 | B19: May | C19: 103
A20: 6 | B20: June | C20: 104
A21: 7 | B21: July | C21: 105
A22: 8 | B22: August | C22: 106
A23: 9 | B23: September | C23: 107
A24: 10 | B24: October | C24: 108
A25: 11 | B25: November | C25: 109
A26: 12 | B26: December | C26: 110
A27: 1 | B27: January | C27: 111
A28: 2 | B28: February | C28: 112

Sheet GA55 A Paymanager
A1: Government Of Rajasthan | M1: Page No. | O1: 1
A2: GA55 A | M2: Financial Year : | O2: =IF('Master Sheet'!B3="","",'Master Sheet'!B3) -> 2019-20
A3: DDO Code: | C3: =IF('Master Sheet'!D3="","",'Master Sheet'!D3) -> 26887 | F3: Office Name : | H3: GSSS Deogarh | M3: TAN: | N3: =IF('Master Sheet'!D7="","",'Master Sheet'!D7) -> ABCD1234E
A4: Employee Name : | C4: =IF('Master Sheet'!A5="","",UPPER('Master Sheet'!A5)) -> ASHWINI KUMAR | H4: Employee ID : | J4: =IF('Master Sheet'!C5="","",'Master Sheet'!C5) -> RJNA12345678910
A5: Designation : | C5: =IF('Master Sheet'!B5="","",'Master Sheet'!B5) -> Lecturer | H5: Pay Scale : | J5: =IF('Master Sheet'!D5="","",'Master Sheet'!D5) -> L-12
A6: GPF/PRAN Number : | C6: =IF('Master Sheet'!A7="","",'Master Sheet'!A7) -> 12345678910 | H6: Account No : | J6: =IF('Master Sheet'!B7="","",'Master Sheet'!B7) -> 1234567891011 | M6: PAN : | N6: =IF('Master Sheet'!C7="","",'Master Sheet'!C7) -> ABCD1234E
A7: Pay Month Pay Year | C7: Bill No. TV No. | D7: Bill Date TV Date | E7: ----------------Allowances---------------- | I7: Gross Amount | J7: ------------Deductions------------ | N7: Total deduction | O7: NetAmount
B8: Salary | E8: Basic | F8: =IF('Master Sheet'!$A$9="","",'Master Sheet'!$A$9) -> 69200.00 | G8: DA | H8: =IF('Master Sheet'!$E$7="YES","",IF(F8="","",ROUND(F8*'DA HRA RATE'!$C$5,0))) -> 8304.00 | I8: =SUM(F8:F12,H8:H12) -> 83040.00 | J8: ECPenF | K8: =IFERROR(IF('Master Sheet'!$E$5="GPF","",ROUND(SUM(F8,H8)*10%,0)),"") ->  | L8: =Deductions!A9 -> SIL | M8: =IF(Deductions!B9="","",Deductions!B9) -> 5000.00 | N8: =SUM(M8:M12,K8:K12) -> 14201.00 | O8: =SUM(I8-N8) -> 68839.00 | W8: =A10 -> March | X8: =F8 -> 69200.00
E9: HRA | F9: =IF('Master Sheet'!$E$7="Yes","",IF(F8="","",ROUND(F8*'DA HRA RATE'!$D$5,0))) -> 5536.00 | G9: Wash All. | H9: =IF('Master Sheet'!$C$9="","",'Master Sheet'!$C$9) ->  | J9: =Deductions!A5 -> GPF | K9: =IF(Deductions!B5="","",Deductions!B5) -> 5100.00 | L9: =Deductions!A10 -> SII | M9: =IF(Deductions!B10="","",Deductions!B10) -> 100.00 | W9: =A15 -> April | X9: =F13 -> 69200.00
A10: March | E10: Handi. All. | F10: =IF('Master Sheet'!$B$9="","",'Master Sheet'!$B$9) ->  | G10: CCA | H10: =IF('Master Sheet'!$D$9="","",'Master Sheet'!$D$9) ->  | J10: =Deductions!A6 -> GPF Loan | K10: =IF(Deductions!B6="","",Deductions!B6) -> 100.00 | L10: =Deductions!A11 -> LIC | M10: =IF(Deductions!B11="","",Deductions!B11) -> 100.00 | W10: =A20 -> May | X10: =F18 -> 69200.00
A11: =LEFT($O$2,4) -> 2019 | E11: ='Master Sheet'!$A$10 -> Ot. Allow 1 | F11: =IF('Master Sheet'!$A$11="","",'Master Sheet'!$A$11) ->  | G11: ='Master Sheet'!$B$10 -> Ot. Allow 2 | H11: =IF('Master Sheet'!$B$11="","",'Master Sheet'!$B$11) ->  | J11: =Deductions!A7 -> RPMF/RGHS | K11: =IF(Deductions!B7="","",Deductions!B7) -> 700.00 | L11: Itax | M11: =IF(A10=Deductions!B17,Deductions!C17,"") -> 101.00 | W11: =A25 -> June | X11: =F23 -> 69200.00
E12: ='Master Sheet'!$C$10 -> Ot. Allow 3 | F12: =IF('Master Sheet'!$C$11="","",'Master Sheet'!$C$11) ->  | G12: Ot. Allow 4 | J12: =Deductions!A8 -> SIP | K12: =IF(Deductions!B8="","",Deductions!B8) -> 3000.00 | L12: =Deductions!A12 -> CM Corona | M12: =IF(Deductions!B12="","",Deductions!B12) ->  | W12: =A30 -> July | X12: =F28 -> 71300.00
B13: Salary | E13: Basic | F13: =IF(A15='Master Sheet'!$A$13,'Master Sheet'!$B$13,F8) -> 69200.00 | G13: DA | H13: =IF('Master Sheet'!$E$7="YES","",IF(F13="","",ROUND(F13*'DA HRA RATE'!$C$6,0))) -> 8304.00 | I13: =SUM(F13:F17,H13:H17) -> 83040.00 | J13: ECPenF | K13: =IFERROR(IF('Master Sheet'!$E$5="GPF","",ROUND(SUM(F13,H13)*10%,0)),"") ->  | L13: =L8 -> SIL | M13: =IF(A15=Deductions!$C$9,Deductions!$D$9,M8) -> 5000.00 | N13: =SUM(M13:M17,K13:K17) -> 14202.00 | O13: =SUM(I13-N13) -> 68838.00 | W13: =A35 -> August | X13: =F33 -> 71300.00
E14: HRA | F14: =IF('Master Sheet'!$E$7="Yes","",IF(F13="","",ROUND(F13*'DA HRA RATE'!$D$6,0))) -> 5536.00 | G14: Wash All. | H14: =H9 ->  | J14: =J9 -> GPF | K14: =IF(A15=Deductions!$C$5,Deductions!$D$5,K9) -> 5100.00 | L14: =L9 -> SII | M14: =IF(A15=Deductions!$C$10,Deductions!$D$10,M9) -> 100.00 | W14: =A42 -> September | X14: =F40 -> 71300.00
A15: April | E15: Handi. All. | F15: =F10 ->  | G15: CCA | H15: =H10 ->  | J15: =J10 -> GPF Loan | K15: =IF(A15=Deductions!$C$6,Deductions!$D$6,K10) -> 100.00 | L15: LIC | M15: =IF(A15=Deductions!$C$11,Deductions!$D$11,M10) -> 100.00 | W15: =A47 -> October | X15: =F45 -> 71300.00
A16: =LEFT($O$2,4) -> 2019 | E16: ='Master Sheet'!$A$10 -> Ot. Allow 1 | F16: =F11 ->  | G16: ='Master Sheet'!$B$10 -> Ot. Allow 2 | H16: =H11 ->  | J16: RPMF/RGHS | K16: =IF(A15=Deductions!$C$7,Deductions!$D$7,K11) -> 700.00 | L16: Itax | M16: =IF(A15=Deductions!B18,Deductions!C18,"") -> 102.00 | W16: =A52 -> November | X16: =F50 -> 71300.00
E17: ='Master Sheet'!$C$10 -> Ot. Allow 3 | F17: =F12 ->  | G17: =G12 -> Ot. Allow 4 | H17: =H12 -> 0.00 | J17: SIP | K17: =K12 -> 3000.00 | L17: CM Corona | M17: =IF(A15=Deductions!$C$12,Deductions!$D$12,M12) ->  | W17: =A57 -> December | X17: =F55 -> 71300.00
B18: Salary | E18: Basic | F18: =IF(A20='Master Sheet'!$A$13,'Master Sheet'!$B$13,F13) -> 69200.00 | G18: DA | H18: =IF('Master Sheet'!$E$7="YES","",IF(F18="","",ROUND(F18*'DA HRA RATE'!$C$7,0))) -> 8304.00 | I18: =SUM(F18:F22,H18:H22) -> 83040.00 | J18: ECPenF | K18: =IFERROR(IF('Master Sheet'!$E$5="GPF","",ROUND(SUM(F18,H18)*10%,0)),"") ->  | L18: =L13 -> SIL | M18: =IF(A20=Deductions!$C$9,Deductions!$D$9,M13) -> 5000.00 | N18: =SUM(M18:M22,K18:K22) -> 14203.00 | O18: =SUM(I18-N18) -> 68837.00 | W18: =A62 -> January | X18: =F60 -> 71300.00
E19: HRA | F19: =IF('Master Sheet'!$E$7="Yes","",IF(F18="","",ROUND(F18*'DA HRA RATE'!$D$7,0))) -> 5536.00 | G19: Wash All. | H19: =H14 ->  | J19: =J14 -> GPF | K19: =IF(A20=Deductions!$C$5,Deductions!$D$5,K14) -> 5100.00 | L19: SII | M19: =IF(A20=Deductions!$C$10,Deductions!$D$10,M14) -> 100.00 | W19: =A67 -> February | X19: =F65 -> 71300.00
A20: May | E20: Handi. All. | F20: =F15 ->  | G20: CCA | H20: =H15 ->  | J20: =J15 -> GPF Loan | K20: =IF(A20=Deductions!$C$6,Deductions!$D$6,K15) -> 100.00 | L20: LIC | M20: =IF(A20=Deductions!$C$11,Deductions!$D$11,M15) -> 100.00
A21: =LEFT($O$2,4) -> 2019 | E21: ='Master Sheet'!$A$10 -> Ot. Allow 1 | F21: =F16 ->  | G21: ='Master Sheet'!$B$10 -> Ot. Allow 2 | H21: =H16 ->  | J21: RPMF/RGHS | K21: =IF(A20=Deductions!$C$7,Deductions!$D$7,K16) -> 700.00 | L21: Itax | M21: =IF(A20=Deductions!B19,Deductions!C19,"") -> 103.00
E22: ='Master Sheet'!$C$10 -> Ot. Allow 3 | F22: =F17 ->  | G22: =G17 -> Ot. Allow 4 | H22: =H17 -> 0.00 | J22: SIP | K22: =K17 -> 3000.00 | L22: CM Corona | M22: =IF(A20=Deductions!$C$12,Deductions!$D$12,M17) -> 
B23: Salary | E23: Basic | F23: =IF(A25='Master Sheet'!$A$13,'Master Sheet'!$B$13,F18) -> 69200.00 | G23: DA | H23: =IF('Master Sheet'!$E$7="YES","",IF(F23="","",ROUND(F23*'DA HRA RATE'!$C$8,0))) -> 8304.00 | I23: =SUM(F23:F27,H23:H27) -> 83040.00 | J23: ECPenF | K23: =IFERROR(IF('Master Sheet'!$E$5="GPF","",ROUND(SUM(F23,H23)*10%,0)),"") ->  | L23: =L18 -> SIL | M23: =IF(A25=Deductions!$C$9,Deductions!$D$9,M18) -> 5000.00 | N23: =SUM(M23:M27,K23:K27) -> 14204.00 | O23: =SUM(I23-N23) -> 68836.00
E24: HRA | F24: =IF('Master Sheet'!$E$7="Yes","",IF(F23="","",ROUND(F23*'DA HRA RATE'!$D$8,0))) -> 5536.00 | G24: Wash All. | H24: =H19 ->  | J24: =J19 -> GPF | K24: =IF(A25=Deductions!$C$5,Deductions!$D$5,K19) -> 5100.00 | L24: SII | M24: =IF(A25=Deductions!$C$10,Deductions!$D$10,M19) -> 100.00
A25: June | E25: Handi. All. | F25: =F20 ->  | G25: CCA | H25: =H20 ->  | J25: =J20 -> GPF Loan | K25: =IF(A25=Deductions!$C$6,Deductions!$D$6,K20) -> 100.00 | L25: LIC | M25: =IF(A25=Deductions!$C$11,Deductions!$D$11,M20) -> 100.00
A26: =LEFT($O$2,4) -> 2019 | E26: ='Master Sheet'!$A$10 -> Ot. Allow 1 | F26: =F21 ->  | G26: ='Master Sheet'!$B$10 -> Ot. Allow 2 | H26: =H21 ->  | J26: RPMF/RGHS | K26: =IF(A25=Deductions!$C$7,Deductions!$D$7,K21) -> 700.00 | L26: Itax | M26: =IF(A25=Deductions!B20,Deductions!C20,"") -> 104.00
E27: ='Master Sheet'!$C$10 -> Ot. Allow 3 | F27: =F22 ->  | G27: =G22 -> Ot. Allow 4 | H27: =H22 -> 0.00 | J27: SIP | K27: =K22 -> 3000.00 | L27: CM Corona | M27: =IF(A25=Deductions!$C$12,Deductions!$D$12,M22) -> 
B28: Salary | E28: Basic | F28: =IF('Master Sheet'!C13="",IF('Master Sheet'!$E$7="Yes",'GA55 A Paymanager'!$F$23,MROUND(F23*1.03,100)),'Master Sheet'!C13) -> 71300.00 | G28: DA | H28: =IF('Master Sheet'!$E$7="YES","",IF(F28="","",ROUND(F28*'DA HRA RATE'!$C$9,0))) -> 8556.00 | I28: =SUM(F28:F32,H28:H32) -> 85560.00 | J28: ECPenF | K28: =IFERROR(IF('Master Sheet'!$E$5="GPF","",ROUND(SUM(F28,H28)*10%,0)),"") ->  | L28: =L23 -> SIL | M28: =IF(A30=Deductions!$C$9,Deductions!$D$9,M23) -> 5000.00 | N28: =SUM(M28:M32,K28:K32) -> 14605.00 | O28: =SUM(I28-N28) -> 70955.00
E29: HRA | F29: =IF('Master Sheet'!$E$7="Yes","",IF(F28="","",ROUND(F28*'DA HRA RATE'!$D$9,0))) -> 5704.00 | G29: Wash All. | H29: =H24 ->  | J29: =J24 -> GPF | K29: =IF(A30=Deductions!$C$5,Deductions!$D$5,K24) -> 5500.00 | L29: SII | M29: =IF(A30=Deductions!$C$10,Deductions!$D$10,M24) -> 100.00
A30: July | E30: Handi. All. | F30: =F25 ->  | G30: CCA | H30: =H25 ->  | J30: =J25 -> GPF Loan | K30: =IF(A30=Deductions!$C$6,Deductions!$D$6,K25) -> 100.00 | L30: LIC | M30: =IF(A30=Deductions!$C$11,Deductions!$D$11,M25) -> 100.00
A31: =LEFT($O$2,4) -> 2019 | E31: ='Master Sheet'!$A$10 -> Ot. Allow 1 | F31: =F26 ->  | G31: ='Master Sheet'!$B$10 -> Ot. Allow 2 | H31: =H26 ->  | J31: RPMF/RGHS | K31: =IF(A30=Deductions!$C$7,Deductions!$D$7,K26) -> 700.00 | L31: Itax | M31: =IF(A30=Deductions!B21,Deductions!C21,"") -> 105.00
E32: ='Master Sheet'!$C$10 -> Ot. Allow 3 | F32: =F27 ->  | G32: =G27 -> Ot. Allow 4 | H32: =H27 -> 0.00 | J32: SIP | K32: =K27 -> 3000.00 | L32: CM Corona | M32: =IF(A30=Deductions!$C$12,Deductions!$D$12,M27) -> 
B33: Salary | E33: Basic | F33: =IF(A35='Master Sheet'!$A$13,'Master Sheet'!$B$13,F28) -> 71300.00 | G33: DA | H33: =IF('Master Sheet'!$E$7="YES","",IF(F33="","",ROUND(F33*'DA HRA RATE'!$C$10,0))) -> 8556.00 | I33: =SUM(F33:F37,H33:H37) -> 85560.00 | J33: ECPenF | K33: =IFERROR(IF('Master Sheet'!$E$5="GPF","",ROUND(SUM(F33,H33)*10%,0)),"") ->  | L33: =L28 -> SIL | M33: =IF(A35=Deductions!$C$9,Deductions!$D$9,M28) -> 5000.00 | N33: =SUM(M33:M37,K33:K37) -> 14606.00 | O33: =SUM(I33-N33) -> 70954.00
E34: HRA | F34: =IF('Master Sheet'!$E$7="Yes","",IF(F33="","",ROUND(F33*'DA HRA RATE'!$D$10,0))) -> 5704.00 | G34: Wash All. | H34: =H29 ->  | J34: =J29 -> GPF | K34: =IF(A35=Deductions!$C$5,Deductions!$D$5,K29) -> 5500.00 | L34: SII | M34: =IF(A35=Deductions!$C$10,Deductions!$D$10,M29) -> 100.00
A35: August | E35: Handi. All. | F35: =F30 ->  | G35: CCA | H35: =H30 ->  | J35: =J30 -> GPF Loan | K35: =IF(A35=Deductions!$C$6,Deductions!$D$6,K30) -> 100.00 | L35: LIC | M35: =IF(A35=Deductions!$C$11,Deductions!$D$11,M30) -> 100.00
A36: =LEFT($O$2,4) -> 2019 | E36: ='Master Sheet'!$A$10 -> Ot. Allow 1 | F36: =F31 ->  | G36: ='Master Sheet'!$B$10 -> Ot. Allow 2 | H36: =H31 ->  | J36: RPMF/RGHS | K36: =IF(A35=Deductions!$C$7,Deductions!$D$7,K31) -> 700.00 | L36: Itax | M36: =IF(A35=Deductions!B22,Deductions!C22,"") -> 106.00
E37: ='Master Sheet'!$C$10 -> Ot. Allow 3 | F37: =F32 ->  | G37: =G32 -> Ot. Allow 4 | H37: =H32 -> 0.00 | J37: SIP | K37: =K32 -> 3000.00 | L37: CM Corona | M37: =IF(A35=Deductions!$C$12,Deductions!$D$12,M32) -> 
A38: Government Of Rajasthan | M38: Page No. | O38: 2
A39: GA55 A | M39: Financial Year : | O39: =O2 -> 2019-20
B40: Salary | E40: Basic | F40: =IF(A42='Master Sheet'!$A$13,'Master Sheet'!$B$13,F33) -> 71300.00 | G40: DA | H40: =IF('Master Sheet'!$E$7="YES","",IF(F40="","",ROUND(F40*'DA HRA RATE'!$C$11,0))) -> 8556.00 | I40: =SUM(F40:F44,H40:H44) -> 85560.00 | J40: ECPenF | K40: =IFERROR(IF('Master Sheet'!$E$5="GPF","",ROUND(SUM(F40,H40)*10%,0)),"") ->  | L40: =L33 -> SIL | M40: =IF(A42=Deductions!$C$9,Deductions!$D$9,M33) -> 5000.00 | N40: =SUM(M40:M44,K40:K44) -> 14607.00 | O40: =SUM(I40-N40) -> 70953.00
E41: HRA | F41: =IF('Master Sheet'!$E$7="Yes","",IF(F40="","",ROUND(F40*'DA HRA RATE'!$D$11,0))) -> 5704.00 | G41: Wash All. | H41: =H34 ->  | J41: =J34 -> GPF | K41: =IF(A42=Deductions!$C$5,Deductions!$D$5,K34) -> 5500.00 | L41: =L34 -> SII | M41: =IF(A42=Deductions!$C$10,Deductions!$D$10,M34) -> 100.00
A42: September | E42: Handi. All. | F42: =F35 ->  | G42: CCA | H42: =H35 ->  | J42: =J35 -> GPF Loan | K42: =IF(A42=Deductions!$C$6,Deductions!$D$6,K35) -> 100.00 | L42: LIC | M42: =IF(A42=Deductions!$C$11,Deductions!$D$11,M35) -> 100.00
A43: =LEFT($O$2,4) -> 2019 | E43: ='Master Sheet'!$A$10 -> Ot. Allow 1 | F43: =F36 ->  | G43: ='Master Sheet'!$B$10 -> Ot. Allow 2 | H43: =H36 ->  | J43: RPMF/RGHS | K43: =IF(A42=Deductions!$C$7,Deductions!$D$7,K36) -> 700.00 | L43: Itax | M43: =IF(A42=Deductions!B23,Deductions!C23,"") -> 107.00
E44: ='Master Sheet'!$C$10 -> Ot. Allow 3 | F44: =F37 ->  | G44: =G37 -> Ot. Allow 4 | H44: =H37 -> 0.00 | J44: SIP | K44: =K37 -> 3000.00 | L44: CM Corona | M44: =IF(A42=Deductions!$C$12,Deductions!$D$12,M37) -> 
B45: Salary | E45: Basic | F45: =IF(A47='Master Sheet'!$A$13,'Master Sheet'!$B$13,F40) -> 71300.00 | G45: DA | H45: =IF('Master Sheet'!$E$7="YES","",IF(F45="","",ROUND(F45*'DA HRA RATE'!$C$12,0))) -> 8556.00 | I45: =SUM(F45:F49,H45:H49) -> 85560.00 | J45: ECPenF | K45: =IFERROR(IF('Master Sheet'!$E$5="GPF","",ROUND(SUM(F45,H45)*10%,0)),"") ->  | L45: =L40 -> SIL | M45: =IF(A47=Deductions!$C$9,Deductions!$D$9,M40) -> 5000.00 | N45: =SUM(M45:M49,K45:K49) -> 14608.00 | O45: =SUM(I45-N45) -> 70952.00
E46: HRA | F46: =IF('Master Sheet'!$E$7="Yes","",IF(F45="","",ROUND(F45*'DA HRA RATE'!$D$12,0))) -> 5704.00 | G46: Wash All. | H46: =H41 ->  | J46: =J41 -> GPF | K46: =IF(A47=Deductions!$C$5,Deductions!$D$5,K41) -> 5500.00 | L46: =L41 -> SII | M46: =IF(A47=Deductions!$C$10,Deductions!$D$10,M41) -> 100.00
A47: October | E47: Handi. All. | F47: =F42 ->  | G47: CCA | H47: =H42 ->  | J47: =J42 -> GPF Loan | K47: =IF(A47=Deductions!$C$6,Deductions!$D$6,K42) -> 100.00 | L47: LIC | M47: =IF(A47=Deductions!$C$11,Deductions!$D$11,M42) -> 100.00
A48: =LEFT($O$2,4) -> 2019 | E48: ='Master Sheet'!$A$10 -> Ot. Allow 1 | F48: =F43 ->  | G48: ='Master Sheet'!$B$10 -> Ot. Allow 2 | H48: =H43 ->  | J48: RPMF/RGHS | K48: =IF(A47=Deductions!$C$7,Deductions!$D$7,K43) -> 700.00 | L48: Itax | M48: =IF(A47=Deductions!B24,Deductions!C24,"") -> 108.00
E49: ='Master Sheet'!$C$10 -> Ot. Allow 3 | F49: =F44 ->  | G49: =G44 -> Ot. Allow 4 | H49: =H44 -> 0.00 | J49: SIP | K49: =K44 -> 3000.00 | L49: CM Corona | M49: =IF(A47=Deductions!$C$12,Deductions!$D$12,M44) -> 
B50: Salary | E50: Basic | F50: =IF(A52='Master Sheet'!$A$13,'Master Sheet'!$B$13,F45) -> 71300.00 | G50: DA | H50: =IF('Master Sheet'!$E$7="YES","",IF(F50="","",ROUND(F50*'DA HRA RATE'!$C$13,0))) -> 8556.00 | I50: =SUM(F50:F54,H50:H54) -> 85560.00 | J50: ECPenF | K50: =IFERROR(IF('Master Sheet'!$E$5="GPF","",ROUND(SUM(F50,H50)*10%,0)),"") ->  | L50: =L45 -> SIL | M50: =IF(A52=Deductions!$C$9,Deductions!$D$9,M45) -> 6000.00 | N50: =SUM(M50:M54,K50:K54) -> 16009.00 | O50: =SUM(I50-N50) -> 69551.00
E51: HRA | F51: =IF('Master Sheet'!$E$7="Yes","",IF(F50="","",ROUND(F50*'DA HRA RATE'!$D$13,0))) -> 5704.00 | G51: Wash All. | H51: =H46 ->  | J51: =J46 -> GPF | K51: =IF(A52=Deductions!$C$5,Deductions!$D$5,K46) -> 5500.00 | L51: SII | M51: =IF(A52=Deductions!$C$10,Deductions!$D$10,M46) -> 200.00
A52: November | E52: Handi. All. | F52: =F47 ->  | G52: CCA | H52: =H47 ->  | J52: =J47 -> GPF Loan | K52: =IF(A52=Deductions!$C$6,Deductions!$D$6,K47) -> 200.00 | L52: LIC | M52: =IF(A52=Deductions!$C$11,Deductions!$D$11,M47) -> 200.00
A53: =LEFT($O$2,4) -> 2019 | E53: ='Master Sheet'!$A$10 -> Ot. Allow 1 | F53: =F48 ->  | G53: ='Master Sheet'!$B$10 -> Ot. Allow 2 | H53: =H48 ->  | J53: RPMF/RGHS | K53: =IF(A52=Deductions!$C$7,Deductions!$D$7,K48) -> 800.00 | L53: Itax | M53: =IF(A52=Deductions!B25,Deductions!C25,"") -> 109.00
E54: ='Master Sheet'!$C$10 -> Ot. Allow 3 | F54: =F49 ->  | G54: =G49 -> Ot. Allow 4 | H54: =H49 -> 0.00 | J54: SIP | K54: =K49 -> 3000.00 | L54: CM Corona | M54: =IF(A52=Deductions!$C$12,Deductions!$D$12,M49) -> 
B55: Salary | E55: Basic | F55: =IF(A57='Master Sheet'!$A$13,'Master Sheet'!$B$13,F50) -> 71300.00 | G55: DA | H55: =IF('Master Sheet'!$E$7="YES","",IF(F55="","",ROUND(F55*'DA HRA RATE'!$C$14,0))) -> 8556.00 | I55: =SUM(F55:F59,H55:H59) -> 85560.00 | J55: ECPenF | K55: =IFERROR(IF('Master Sheet'!$E$5="GPF","",ROUND(SUM(F55,H55)*10%,0)),"") ->  | L55: =L50 -> SIL | M55: =IF(A57=Deductions!$C$9,Deductions!$D$9,M50) -> 6000.00 | N55: =SUM(M55:M59,K55:K59) -> 16010.00 | O55: =SUM(I55-N55) -> 69550.00
E56: HRA | F56: =IF('Master Sheet'!$E$7="Yes","",IF(F55="","",ROUND(F55*'DA HRA RATE'!$D$14,0))) -> 5704.00 | G56: Wash All. | H56: =H51 ->  | J56: =J51 -> GPF | K56: =IF(A57=Deductions!$C$5,Deductions!$D$5,K51) -> 5500.00 | L56: SII | M56: =IF(A57=Deductions!$C$10,Deductions!$D$10,M51) -> 200.00
A57: December | E57: Handi. All. | F57: =F52 ->  | G57: CCA | H57: =H52 ->  | J57: =J52 -> GPF Loan | K57: =IF(A57=Deductions!$C$6,Deductions!$D$6,K52) -> 200.00 | L57: LIC | M57: =IF(A57=Deductions!$C$11,Deductions!$D$11,M52) -> 200.00
A58: =LEFT($O$2,4) -> 2019 | E58: ='Master Sheet'!$A$10 -> Ot. Allow 1 | F58: =F53 ->  | G58: ='Master Sheet'!$B$10 -> Ot. Allow 2 | H58: =H53 ->  | J58: RPMF/RGHS | K58: =IF(A57=Deductions!$C$7,Deductions!$D$7,K53) -> 800.00 | L58: Itax | M58: =IF(A57=Deductions!B26,Deductions!C26,"") -> 110.00
E59: ='Master Sheet'!$C$10 -> Ot. Allow 3 | F59: =F54 ->  | G59: =G49 -> Ot. Allow 4 | H59: =H54 -> 0.00 | J59: SIP | K59: =K54 -> 3000.00 | L59: CM Corona | M59: =IF(A57=Deductions!$C$12,Deductions!$D$12,M54) -> 
B60: Salary | E60: Basic | F60: =IF(A62='Master Sheet'!$A$13,'Master Sheet'!$B$13,F55) -> 71300.00 | G60: DA | H60: =IF('Master Sheet'!$E$7="YES","",IF(F60="","",ROUND(F60*'DA HRA RATE'!$C$15,0))) -> 8556.00 | I60: =SUM(F60:F64,H60:H64) -> 85560.00 | J60: ECPenF | K60: =IFERROR(IF('Master Sheet'!$E$5="GPF","",ROUND(SUM(F60,H60)*10%,0)),"") ->  | L60: =L55 -> SIL | M60: =IF(A62=Deductions!$C$9,Deductions!$D$9,M55) -> 6000.00 | N60: =SUM(M60:M64,K60:K64) -> 16011.00 | O60: =SUM(I60-N60) -> 69549.00
E61: HRA | F61: =IF('Master Sheet'!$E$7="Yes","",IF(F60="","",ROUND(F60*'DA HRA RATE'!$D$15,0))) -> 5704.00 | G61: Wash All. | H61: =H56 ->  | J61: =J56 -> GPF | K61: =IF(A62=Deductions!$C$5,Deductions!$D$5,K56) -> 5500.00 | L61: SII | M61: =IF(A62=Deductions!$C$10,Deductions!$D$10,M56) -> 200.00
A62: January | E62: Handi. All. | F62: =F57 ->  | G62: CCA | H62: =H57 ->  | J62: =J57 -> GPF Loan | K62: =IF(A62=Deductions!$C$6,Deductions!$D$6,K57) -> 200.00 | L62: LIC | M62: =IF(A62=Deductions!$C$11,Deductions!$D$11,M57) -> 200.00
A63: =LEFT($O$2,2)&RIGHT($O$2,2) -> 2020 | E63: ='Master Sheet'!$A$10 -> Ot. Allow 1 | F63: =F58 ->  | G63: ='Master Sheet'!$B$10 -> Ot. Allow 2 | H63: =H58 ->  | J63: RPMF/RGHS | K63: =IF(A62=Deductions!$C$7,Deductions!$D$7,K58) -> 800.00 | L63: Itax | M63: =IF(A62=Deductions!B27,Deductions!C27,"") -> 111.00
E64: ='Master Sheet'!$C$10 -> Ot. Allow 3 | F64: =F59 ->  | G64: =G59 -> Ot. Allow 4 | H64: =H59 -> 0.00 | J64: SIP | K64: =K59 -> 3000.00 | L64: CM Corona | M64: =IF(A62=Deductions!$C$12,Deductions!$D$12,M59) -> 
B65: Salary | E65: Basic | F65: =IF(A67='Master Sheet'!$A$13,'Master Sheet'!$B$13,F60) -> 71300.00 | G65: DA | H65: =IF('Master Sheet'!$E$7="YES","",IF(F65="","",ROUND(F65*'DA HRA RATE'!$C$16,0))) -> 8556.00 | I65: =SUM(F65:F69,H65:H69) -> 85560.00 | J65: ECPenF | K65: =IFERROR(IF('Master Sheet'!$E$5="GPF","",ROUND(SUM(F65,H65)*10%,0)),"") ->  | L65: =L60 -> SIL | M65: =IF(A67=Deductions!$C$9,Deductions!$D$9,M60) -> 6000.00 | N65: =SUM(M65:M69,K65:K69) -> 16012.00 | O65: =SUM(I65-N65) -> 69548.00
E66: HRA | F66: =IF('Master Sheet'!$E$7="Yes","",IF(F65="","",ROUND(F65*'DA HRA RATE'!$D$16,0))) -> 5704.00 | G66: Wash All. | H66: =H61 ->  | J66: =J61 -> GPF | K66: =IF(A67=Deductions!$C$5,Deductions!$D$5,K61) -> 5500.00 | L66: SII | M66: =IF(A67=Deductions!$C$10,Deductions!$D$10,M61) -> 200.00
A67: February | E67: Handi. All. | F67: =F62 ->  | G67: CCA | H67: =H62 ->  | J67: =J62 -> GPF Loan | K67: =IF(A67=Deductions!$C$6,Deductions!$D$6,K62) -> 200.00 | L67: LIC | M67: =IF(A67=Deductions!$C$11,Deductions!$D$11,M62) -> 200.00
A68: =LEFT($O$2,2)&RIGHT($O$2,2) -> 2020 | E68: ='Master Sheet'!$A$10 -> Ot. Allow 1 | F68: =F63 ->  | G68: ='Master Sheet'!$B$10 -> Ot. Allow 2 | H68: =H63 ->  | J68: RPMF/RGHS | K68: =IF(A67=Deductions!$C$7,Deductions!$D$7,K63) -> 800.00 | L68: Itax | M68: =IF(A67=Deductions!B28,Deductions!C28,"") -> 112.00
E69: ='Master Sheet'!$C$10 -> Ot. Allow 3 | F69: =F64 ->  | G69: =G59 -> Ot. Allow 4 | H69: =H64 -> 0.00 | J69: SIP | K69: =K64 -> 3000.00 | L69: CM Corona | M69: =IF(A67=Deductions!$C$12,Deductions!$D$12,M64) -> 
A70: Month | B70: Bonus | E70: Bouns | F70: =IF('Master Sheet'!D11="Yes",ROUND(6774/12*'Master Sheet'!$E$11,0),"") ->  | I70: =SUM(F70) -> 0.00 | J70: GPF 2004 | L70: Other Ded. | N70: =SUM(K70,M70) -> 0.00 | O70: =SUM(I70-N70) -> 0.00
A71: Month | B71: DA | E71: DA | F71: 2076.00 | G71: DA | H71: 2076.00 | I71: =SUM(F71,H71) -> 4152.00 | J71: ECPenF | K71: =IFERROR(IF('Master Sheet'!$E$5="GPF","",ROUND(SUM(F71,H71)*10%,0)),"") ->  | L71: GPF | M71: =IF('Master Sheet'!$E$5="NPS","",I71) -> 4152.00 | N71: =SUM(K71,M71) -> 4152.00 | O71: =SUM(I71-N71) -> 0.00
A72: Month | B72: DA | E72: DA | G72: DA | I72: =SUM(F72,H72) -> 0.00 | J72: ECPenF | K72: =IFERROR(IF('Master Sheet'!$E$5="GPF","",ROUND(SUM(F72,H72)*10%,0)),"") ->  | L72: GPF | M72: =IF('Master Sheet'!$E$5="NPS","",I72) -> 0.00 | N72: =SUM(K72,M72) -> 0.00 | O72: =SUM(I72-N72) -> 0.00
A73: ='Master Sheet'!E9 -> November | B73: Surrender | E73: Basic | F73: =ROUND(VLOOKUP($A$73,$W$8:$X$19,2,0)/2,0) -> 35650.00 | G73: DA | H73: =ROUND(VLOOKUP($A$73,Table1[[#All],[Month]:[DA Rate]],2,0)*F73,0) -> 4278.00 | I73: =SUM(F73,H73) -> 39928.00 | J73: Itax | L73: Other Ded. | N73: =SUM(K73,M73) -> 0.00 | O73: =SUM(I73-N73) -> 39928.00
A74: Government Of Rajasthan | M74: Page No. | O74: 3
A75: GA55 A | M75: Financial Year : | O75: =O2 -> 2019-20
A76: Month | B76: Salary Arrear | E76: Basic | G76: DA | I76: =SUM(H76:H77,F76:F77) -> 0.00 | J76: ECPenF | K76: =IFERROR(IF('Master Sheet'!$E$5="GPF","",ROUND(SUM(F76,H76)*10%,0)),"") ->  | L76: Itax | N76: =SUM(M76:M77,K76:K77) -> 0.00 | O76: =SUM(I76-N76) -> 0.00
E77: HRA | G77: =E48 -> Ot. Allow 1 | J77: GPF | L77: Other Ded.
A78: Month | B78: Other Arrear | E78: Basic | G78: DA | I78: =SUM(H78:H79,F78:F79) -> 0.00 | J78: ECPenF | K78: =IFERROR(IF('Master Sheet'!$E$5="GPF","",ROUND(SUM(F78,H78)*10%,0)),"") ->  | L78: Itax | N78: =SUM(M78:M79,K78:K79) -> 0.00 | O78: =SUM(I78-N78) -> 0.00
E79: HRA | G79: =G77 -> Ot. Allow 1 | J79: GPF | L79: Other Ded.
A80: Month | B80: Other Arrear | E80: Basic | G80: DA | I80: =SUM(H80:H81,F80:F81) -> 0.00 | J80: ECPenF | K80: =IFERROR(IF('Master Sheet'!$E$5="GPF","",ROUND(SUM(F80,H80)*10%,0)),"") ->  | L80: Itax | N80: =SUM(M80:M81,K80:K81) -> 0.00 | O80: =SUM(I80-N80) -> 0.00
E81: HRA | G81: =G79 -> Ot. Allow 1 | J81: GPF | L81: Other Ded.
A82: Month | B82: Other Arrear | E82: Basic | G82: DA | I82: =SUM(H82:H83,F82:F83) -> 0.00 | J82: ECPenF | K82: =IFERROR(IF('Master Sheet'!$E$5="GPF","",ROUND(SUM(F82,H82)*10%,0)),"") ->  | L82: Itax | N82: =SUM(M82:M83,K82:K83) -> 0.00 | O82: =SUM(I82-N82) -> 0.00
E83: HRA | G83: =G77 -> Ot. Allow 1 | J83: GPF | L83: Other Ded.
B85: Total Allowances | G85: Total Allowances
B86: =E8 -> Basic | D86: 100 | E86: =SUMIF($E$8:$E$37,$B86,$F$8:$F$37)+SUMIF($E$40:$E$73,$B86,$F$40:$F$73)+SUMIF($E$76:$E$83,$B86,$F$76:$F$83)+SUMIF($G$8:$G$37,$B86,$H$8:$H$37)+SUMIF($G$40:$G$73,$B86,$H$40:$H$73)+SUMIF($G$76:$G$83,$B86,$H$76:$H$83) -> 882850.00 | G86: ECPenF | I86: =SUMIF($J$8:$J$37,$G86,$K$8:$K$37)+SUMIF($L$8:$L$37,$G86,$M$8:$M$37)+SUMIF($J$40:$J$73,$G86,$K$40:$K$73)+SUMIF($L$40:$L$73,$G86,$M$40:$M$73)+SUMIF($J$76:$J$83,$G86,$K$76:$K$83)+SUMIF($L$76:$L$83,$G86,$M$76:$M$83) -> 0.00
B87: =E9 -> HRA | D87: 107 | E87: 67776.00 | G87: GPF | I87: 68552.00
B88: Handi. All. | E88: 0.00 | G88: SIP | I88: 36000.00
B89: =G8 -> DA | D89: 104 | E89: 110094.00 | G89: RPMF | I89: 0.00
B90: =G9 -> Wash All. | E90: 0.00 | G90: CM Corona | I90: 0.00
B91: CCA | E91: 0.00 | G91: LIC | I91: 1600.00
B92: =E70 -> Bouns | E92: 0.00 | G92: GPF Loan | I92: 1600.00
B93: =E11 -> Ot. Allow 1 | E93: 0.00 | G93: SIL | I93: 64000.00
B94: =G11 -> Ot. Allow 2 | E94: 0.00 | G94: Itax | I94: 1278.00
B95: =E12 -> Ot. Allow 3 | E95: 0.00 | G95: Other Ded. | I95: 0.00
B96: Total Allowances: | D96: =ROUND(SUM(E86:E95),0) -> 1060720.00 | G96: Total Deduction: | I96: =ROUND(SUM(I86:J95),0) -> 173030.00 | L96: Total Net Amount : | N96: =IFERROR(D96-I96,"") -> 887690.00

Sheet Single Page
A1: =IF('Master Sheet'!A1="","",'Master Sheet'!A1) -> Government Senior Secondary School, Deogarh (Rajsamand)
A2: ="वेतन एवं कटौतियों का ब्यौरा सत्र"&" - "&'Master Sheet'!$B$3 -> वेतन एवं कटौतियों का ब्यौरा सत्र - 2019-20
A4: नाम कर्मचारी- | B4: =IF('Master Sheet'!A5="","",'Master Sheet'!A5) -> Ashwini Kumar | F4: पद- | G4: =IF('Master Sheet'!B5="","",'Master Sheet'!B5) -> Lecturer | J4: लेवल- | K4: =IF('Master Sheet'!D5="","",'Master Sheet'!D5) -> L-12 | M4: Employee ID- | O4: =IF('Master Sheet'!C5="","",'Master Sheet'!C5) -> RJNA12345678910 | S4: मार्च का बेसिक- | V4: =IF('Master Sheet'!A9="","",'Master Sheet'!A9) -> 69200.00 | X4: TAN No. | Y4: =IF('Master Sheet'!D7="","",'Master Sheet'!D7) -> ABCD1234E
A5: पैन नं.- | B5: =IF('Master Sheet'!C7="","",'Master Sheet'!C7) -> ABCD1234E | F5: Mobile- | G5: =IF('Master Sheet'!D13="","",'Master Sheet'!D13) -> 9024823712 | J5: SI No.- | K5: =IF('Master Sheet'!E13="","",'Master Sheet'!E13) -> 12345678 | M5: GPF/PRAN No.- | O5: =IF('Master Sheet'!A7="","",'Master Sheet'!A7) -> 12345678910 | S5: बैंक खाता सं.- | V5: =IF('Master Sheet'!B7="","",'Master Sheet'!B7) -> 1234567891011
A6: Month & Year | B6: Basic Pay | C6: DA | D6: HRA | E6: Washing Allow. | F6: Handicaped Allowance | G6: CCA Allowance | H6: ='Master Sheet'!A10 -> Ot. Allow 1 | I6: Gross Salary | J6: SIP | K6: GPF | L6: NPS | M6: GPF Loan | N6: RPMF | O6: SIL | P6: SII | Q6: GIS | R6: LIC | S6: COVIS-19 | T6: GPF 2004 | U6: Hitkari Nidhi | V6: =Deductions!A13 -> Other Ded. | W6: ITAX | X6: Total Deduction | Y6: NET Payment | Z6: Bill No./ Date | AI6: ='Master Sheet'!E9 -> November
A7: March | B7: =IF('Master Sheet'!$A$9="","",'Master Sheet'!$A$9) -> 69,200 | C7: =IF('Master Sheet'!$E$7="Yes","",IF(B7="","",ROUND(B7*'DA HRA RATE'!$C5,0))) -> 8,304 | D7: =IF('Master Sheet'!$E$7="Yes","",IF(B7="","",ROUND(B7*'DA HRA RATE'!$D5,0))) -> 5,536 | E7: =IF('Master Sheet'!$C$9="","",'Master Sheet'!$C$9) ->  | F7: =IF('Master Sheet'!$B$9="","",'Master Sheet'!$B$9) ->  | G7: =IF('Master Sheet'!$D$9="","",'Master Sheet'!$D$9) ->  | H7: =IF('Master Sheet'!$A$11="","",'Master Sheet'!$A$11) ->  | I7: =SUM(B7:H7) -> 83,040 | J7: =IF(Deductions!B8="","",Deductions!B8) -> 3,000 | K7: =IF(Deductions!B5="","",Deductions!B5) -> 5,100 | L7: =IFERROR(IF('Master Sheet'!$E$5="GPF","",ROUND(SUM(B7:C7)*10%,0)),"") ->  | M7: =IF(Deductions!B6="","",Deductions!B6) -> 100 | N7: =IF(Deductions!B7="","",Deductions!B7) -> 700 | O7: =IF(Deductions!B9="","",Deductions!B9) -> 5,000 | P7: =IF(Deductions!B10="","",Deductions!B10) -> 100 | R7: =IF(Deductions!B11="","",Deductions!B11) -> 100 | W7: =IF(A7=Deductions!B17,Deductions!C17,"") -> 101 | X7: =SUM(J7:W7) -> 14,201 | Y7: =SUM(I7-X7) -> 68,839 | AI7: =A7 -> March | AJ7: =B7 -> 69200
A8: April | B8: =IF(A8='Master Sheet'!$A$13,'Master Sheet'!$B$13,B7) -> 69,200 | C8: =IF('Master Sheet'!$E$7="Yes","",IF(B8="","",ROUND(B8*'DA HRA RATE'!$C6,0))) -> 8,304 | D8: =IF('Master Sheet'!$E$7="Yes","",IF(B8="","",ROUND(B8*'DA HRA RATE'!$D6,0))) -> 5,536 | E8: =E7 ->  | F8: =F7 ->  | G8: =G7 ->  | H8: =H7 ->  | I8: =SUM(B8:H8) -> 83,040 | J8: =J7 -> 3,000 | K8: =IF(A8=Deductions!$C$5,Deductions!$D$5,K7) -> 5,100 | L8: =IFERROR(IF('Master Sheet'!$E$5="GPF","",ROUND(SUM(B8:C8)*10%,0)),"") ->  | M8: =IF(A8=Deductions!$C$6,Deductions!$D$6,M7) -> 100 | N8: =IF(A8=Deductions!$C$7,Deductions!$D$7,N7) -> 700 | O8: =IF(A8=Deductions!$C$9,Deductions!$D$9,O7) -> 5,000 | P8: =IF(A8=Deductions!$C$10,Deductions!$D$10,P7) -> 100 | Q8: 220 | R8: =IF(A8=Deductions!$C$11,Deductions!$D$11,R7) -> 100 | W8: =IF(A8=Deductions!B18,Deductions!C18,"") -> 102 | X8: =SUM(J8:W8) -> 14,422 | Y8: =SUM(I8-X8) -> 68,618 | AI8: =A8 -> April | AJ8: =B8 -> 69200
A9: May | B9: =IF(A9='Master Sheet'!$A$13,'Master Sheet'!$B$13,B8) -> 69,200 | C9: =IF('Master Sheet'!$E$7="Yes","",IF(B9="","",ROUND(B9*'DA HRA RATE'!$C7,0))) -> 8,304 | D9: =IF('Master Sheet'!$E$7="Yes","",IF(B9="","",ROUND(B9*'DA HRA RATE'!$D7,0))) -> 5,536 | E9: =E8 ->  | F9: =F8 ->  | G9: =G8 ->  | H9: =H8 ->  | I9: =SUM(B9:H9) -> 83,040 | J9: =J8 -> 3,000 | K9: =IF(A9=Deductions!$C$5,Deductions!$D$5,K8) -> 5,100 | L9: =IFERROR(IF('Master Sheet'!$E$5="GPF","",ROUND(SUM(B9:C9)*10%,0)),"") ->  | M9: =IF(A9=Deductions!$C$6,Deductions!$D$6,M8) -> 100 | N9: =IF(A9=Deductions!$C$7,Deductions!$D$7,N8) -> 700 | O9: =IF(A9=Deductions!$C$9,Deductions!$D$9,O8) -> 5,000 | P9: =IF(A9=Deductions!$C$10,Deductions!$D$10,P8) -> 100 | R9: =IF(A9=Deductions!$C$11,Deductions!$D$11,R8) -> 100 | W9: =IF(A9=Deductions!B19,Deductions!C19,"") -> 103 | X9: =SUM(J9:W9) -> 14,203 | Y9: =SUM(I9-X9) -> 68,837 | AI9: May | AJ9: 69200
A10: June | B10: =IF(A10='Master Sheet'!$A$13,'Master Sheet'!$B$13,B9) -> 69,200 | C10: =IF('Master Sheet'!$E$7="Yes","",IF(B10="","",ROUND(B10*'DA HRA RATE'!$C8,0))) -> 8,304 | D10: =IF('Master Sheet'!$E$7="Yes","",IF(B10="","",ROUND(B10*'DA HRA RATE'!$D8,0))) -> 5,536 | E10: =E9 ->  | F10: =F9 ->  | G10: =G9 ->  | H10: =H9 ->  | I10: =SUM(B10:H10) -> 83,040 | J10: =J9 -> 3,000 | K10: =IF(A10=Deductions!$C$5,Deductions!$D$5,K9) -> 5,100 | L10: =IFERROR(IF('Master Sheet'!$E$5="GPF","",ROUND(SUM(B10:C10)*10%,0)),"") ->  | M10: =IF(A10=Deductions!$C$6,Deductions!$D$6,M9) -> 100 | N10: =IF(A10=Deductions!$C$7,Deductions!$D$7,N9) -> 700 | O10: =IF(A10=Deductions!$C$9,Deductions!$D$9,O9) -> 5,000 | P10: =IF(A10=Deductions!$C$10,Deductions!$D$10,P9) -> 100 | R10: =IF(A10=Deductions!$C$11,Deductions!$D$11,R9) -> 100 | W10: =IF(A10=Deductions!B20,Deductions!C20,"") -> 104 | X10: =SUM(J10:W10) -> 14,204 | Y10: =SUM(I10-X10) -> 68,836 | AI10: June | AJ10: 69200
A11: July | B11: =IF('Master Sheet'!$C$13="",IF('Master Sheet'!$E$7="Yes",$B$9,MROUND($B$9*1.03,100)),'Master Sheet'!$C$13) -> 71,300 | C11: =IF('Master Sheet'!$E$7="Yes","",IF(B11="","",ROUND(B11*'DA HRA RATE'!$C9,0))) -> 8,556 | D11: =IF('Master Sheet'!$E$7="Yes","",IF(B11="","",ROUND(B11*'DA HRA RATE'!$D9,0))) -> 5,704 | E11: =E10 ->  | F11: =F10 ->  | G11: =G10 ->  | H11: =H10 ->  | I11: =SUM(B11:H11) -> 85,560 | J11: =J10 -> 3,000 | K11: =IF(A11=Deductions!$C$5,Deductions!$D$5,K10) -> 5,500 | L11: =IFERROR(IF('Master Sheet'!$E$5="GPF","",ROUND(SUM(B11:C11)*10%,0)),"") ->  | M11: =IF(A11=Deductions!$C$6,Deductions!$D$6,M10) -> 100 | N11: =IF(A11=Deductions!$C$7,Deductions!$D$7,N10) -> 700 | O11: =IF(A11=Deductions!$C$9,Deductions!$D$9,O10) -> 5,000 | P11: =IF(A11=Deductions!$C$10,Deductions!$D$10,P10) -> 100 | R11: =IF(A11=Deductions!$C$11,Deductions!$D$11,R10) -> 100 | W11: =IF(A11=Deductions!B21,Deductions!C21,"") -> 105 | X11: =SUM(J11:W11) -> 14,605 | Y11: =SUM(I11-X11) -> 70,955 | AI11: July | AJ11: 71300
A12: August | B12: =IF(A12='Master Sheet'!$A$13,'Master Sheet'!$B$13,B11) -> 71,300 | C12: =IF('Master Sheet'!$E$7="Yes","",IF(B12="","",ROUND(B12*'DA HRA RATE'!$C10,0))) -> 8,556 | D12: =IF('Master Sheet'!$E$7="Yes","",IF(B12="","",ROUND(B12*'DA HRA RATE'!$D10,0))) -> 5,704 | E12: =E11 ->  | F12: =F11 ->  | G12: =G11 ->  | H12: =H11 ->  | I12: =SUM(B12:H12) -> 85,560 | J12: =J11 -> 3,000 | K12: =IF(A12=Deductions!$C$5,Deductions!$D$5,K11) -> 5,500 | L12: =IFERROR(IF('Master Sheet'!$E$5="GPF","",ROUND(SUM(B12:C12)*10%,0)),"") ->  | M12: =IF(A12=Deductions!$C$6,Deductions!$D$6,M11) -> 100 | N12: =IF(A12=Deductions!$C$7,Deductions!$D$7,N11) -> 700 | O12: =IF(A12=Deductions!$C$9,Deductions!$D$9,O11) -> 5,000 | P12: =IF(A12=Deductions!$C$10,Deductions!$D$10,P11) -> 100 | R12: =IF(A12=Deductions!$C$11,Deductions!$D$11,R11) -> 100 | W12: =IF(A12=Deductions!B22,Deductions!C22,"") -> 106 | X12: =SUM(J12:W12) -> 14,606 | Y12: =SUM(I12-X12) -> 70,954 | AI12: August | AJ12: 71300
A13: September | B13: =IF(A13='Master Sheet'!$A$13,'Master Sheet'!$B$13,B12) -> 71,300 | C13: =IF('Master Sheet'!$E$7="Yes","",IF(B13="","",ROUND(B13*'DA HRA RATE'!$C11,0))) -> 8,556 | D13: =IF('Master Sheet'!$E$7="Yes","",IF(B13="","",ROUND(B13*'DA HRA RATE'!$D11,0))) -> 5,704 | E13: =E12 ->  | F13: =F12 ->  | G13: =G12 ->  | H13: =H12 ->  | I13: =SUM(B13:H13) -> 85,560 | J13: =J12 -> 3,000 | K13: =IF(A13=Deductions!$C$5,Deductions!$D$5,K12) -> 5,500 | L13: =IFERROR(IF('Master Sheet'!$E$5="GPF","",ROUND(SUM(B13:C13)*10%,0)),"") ->  | M13: =IF(A13=Deductions!$C$6,Deductions!$D$6,M12) -> 100 | N13: =IF(A13=Deductions!$C$7,Deductions!$D$7,N12) -> 700 | O13: =IF(A13=Deductions!$C$9,Deductions!$D$9,O12) -> 5,000 | P13: =IF(A13=Deductions!$C$10,Deductions!$D$10,P12) -> 100 | R13: =IF(A13=Deductions!$C$11,Deductions!$D$11,R12) -> 100 | W13: =IF(A13=Deductions!B23,Deductions!C23,"") -> 107 | X13: =SUM(J13:W13) -> 14,607 | Y13: =SUM(I13-X13) -> 70,953 | AI13: September | AJ13: 71300
A14: October | B14: =IF(A14='Master Sheet'!$A$13,'Master Sheet'!$B$13,B13) -> 71,300 | C14: =IF('Master Sheet'!$E$7="Yes","",IF(B14="","",ROUND(B14*'DA HRA RATE'!$C12,0))) -> 8,556 | D14: =IF('Master Sheet'!$E$7="Yes","",IF(B14="","",ROUND(B14*'DA HRA RATE'!$D12,0))) -> 5,704 | E14: =E13 ->  | F14: =F13 ->  | G14: =G13 ->  | H14: =H13 ->  | I14: =SUM(B14:H14) -> 85,560 | J14: =J13 -> 3,000 | K14: =IF(A14=Deductions!$C$5,Deductions!$D$5,K13) -> 5,500 | L14: =IFERROR(IF('Master Sheet'!$E$5="GPF","",ROUND(SUM(B14:C14)*10%,0)),"") ->  | M14: =IF(A14=Deductions!$C$6,Deductions!$D$6,M13) -> 100 | N14: =IF(A14=Deductions!$C$7,Deductions!$D$7,N13) -> 700 | O14: =IF(A14=Deductions!$C$9,Deductions!$D$9,O13) -> 5,000 | P14: =IF(A14=Deductions!$C$10,Deductions!$D$10,P13) -> 100 | R14: =IF(A14=Deductions!$C$11,Deductions!$D$11,R13) -> 100 | W14: =IF(A14=Deductions!B24,Deductions!C24,"") -> 108 | X14: =SUM(J14:W14) -> 14,608 | Y14: =SUM(I14-X14) -> 70,952 | AI14: October | AJ14: 71300
A15: November | B15: =IF(A15='Master Sheet'!$A$13,'Master Sheet'!$B$13,B14) -> 71,300 | C15: =IF('Master Sheet'!$E$7="Yes","",IF(B15="","",ROUND(B15*'DA HRA RATE'!$C13,0))) -> 8,556 | D15: =IF('Master Sheet'!$E$7="Yes","",IF(B15="","",ROUND(B15*'DA HRA RATE'!$D13,0))) -> 5,704 | E15: =E14 ->  | F15: =F14 ->  | G15: =G14 ->  | H15: =H14 ->  | I15: =SUM(B15:H15) -> 85,560 | J15: =J14 -> 3,000 | K15: =IF(A15=Deductions!$C$5,Deductions!$D$5,K14) -> 5,500 | L15: =IFERROR(IF('Master Sheet'!$E$5="GPF","",ROUND(SUM(B15:C15)*10%,0)),"") ->  | M15: =IF(A15=Deductions!$C$6,Deductions!$D$6,M14) -> 200 | N15: =IF(A15=Deductions!$C$7,Deductions!$D$7,N14) -> 800 | O15: =IF(A15=Deductions!$C$9,Deductions!$D$9,O14) -> 6,000 | P15: =IF(A15=Deductions!$C$10,Deductions!$D$10,P14) -> 200 | R15: =IF(A15=Deductions!$C$11,Deductions!$D$11,R14) -> 200 | W15: =IF(A15=Deductions!B25,Deductions!C25,"") -> 109 | X15: =SUM(J15:W15) -> 16,009 | Y15: =SUM(I15-X15) -> 69,551 | AI15: November | AJ15: 71300
A16: December | B16: =IF(A16='Master Sheet'!$A$13,'Master Sheet'!$B$13,B15) -> 71,300 | C16: =IF('Master Sheet'!$E$7="Yes","",IF(B16="","",ROUND(B16*'DA HRA RATE'!$C14,0))) -> 8,556 | D16: =IF('Master Sheet'!$E$7="Yes","",IF(B16="","",ROUND(B16*'DA HRA RATE'!$D14,0))) -> 5,704 | E16: =E15 ->  | F16: =F15 ->  | G16: =G15 ->  | H16: =H15 ->  | I16: =SUM(B16:H16) -> 85,560 | J16: =J15 -> 3,000 | K16: =IF(A16=Deductions!$C$5,Deductions!$D$5,K15) -> 5,500 | L16: =IFERROR(IF('Master Sheet'!$E$5="GPF","",ROUND(SUM(B16:C16)*10%,0)),"") ->  | M16: =IF(A16=Deductions!$C$6,Deductions!$D$6,M15) -> 200 | N16: =IF(A16=Deductions!$C$7,Deductions!$D$7,N15) -> 800 | O16: =IF(A16=Deductions!$C$9,Deductions!$D$9,O15) -> 6,000 | P16: =IF(A16=Deductions!$C$10,Deductions!$D$10,P15) -> 200 | R16: =IF(A16=Deductions!$C$11,Deductions!$D$11,R15) -> 200 | W16: =IF(A16=Deductions!B26,Deductions!C26,"") -> 110 | X16: =SUM(J16:W16) -> 16,010 | Y16: =SUM(I16-X16) -> 69,550 | AI16: December | AJ16: 71300
A17: January | B17: =IF(A17='Master Sheet'!$A$13,'Master Sheet'!$B$13,B16) -> 71,300 | C17: =IF('Master Sheet'!$E$7="Yes","",IF(B17="","",ROUND(B17*'DA HRA RATE'!$C15,0))) -> 8,556 | D17: =IF('Master Sheet'!$E$7="Yes","",IF(B17="","",ROUND(B17*'DA HRA RATE'!$D15,0))) -> 5,704 | E17: =E16 ->  | F17: =F16 ->  | G17: =G16 ->  | H17: =H16 ->  | I17: =SUM(B17:H17) -> 85,560 | J17: =J16 -> 3,000 | K17: =IF(A17=Deductions!$C$5,Deductions!$D$5,K16) -> 5,500 | L17: =IFERROR(IF('Master Sheet'!$E$5="GPF","",ROUND(SUM(B17:C17)*10%,0)),"") ->  | M17: =IF(A17=Deductions!$C$6,Deductions!$D$6,M16) -> 200 | N17: =IF(A17=Deductions!$C$7,Deductions!$D$7,N16) -> 800 | O17: =IF(A17=Deductions!$C$9,Deductions!$D$9,O16) -> 6,000 | P17: =IF(A17=Deductions!$C$10,Deductions!$D$10,P16) -> 200 | R17: =IF(A17=Deductions!$C$11,Deductions!$D$11,R16) -> 200 | W17: =IF(A17=Deductions!B27,Deductions!C27,"") -> 111 | X17: =SUM(J17:W17) -> 16,011 | Y17: =SUM(I17-X17) -> 69,549 | AI17: January | AJ17: 71300
A18: February | B18: =IF(A18='Master Sheet'!$A$13,'Master Sheet'!$B$13,B17) -> 71,300 | C18: =IF('Master Sheet'!$E$7="Yes","",IF(B18="","",ROUND(B18*'DA HRA RATE'!$C16,0))) -> 8,556 | D18: =IF('Master Sheet'!$E$7="Yes","",IF(B18="","",ROUND(B18*'DA HRA RATE'!$D16,0))) -> 5,704 | E18: =E17 ->  | F18: =F17 ->  | G18: =G17 ->  | H18: =H17 ->  | I18: =SUM(B18:H18) -> 85,560 | J18: =J17 -> 3,000 | K18: =IF(A18=Deductions!$C$5,Deductions!$D$5,K17) -> 5,500 | L18: =IFERROR(IF('Master Sheet'!$E$5="GPF","",ROUND(SUM(B18:C18)*10%,0)),"") ->  | M18: =IF(A18=Deductions!$C$6,Deductions!$D$6,M17) -> 200 | N18: =IF(A18=Deductions!$C$7,Deductions!$D$7,N17) -> 800 | O18: =IF(A18=Deductions!$C$9,Deductions!$D$9,O17) -> 6,000 | P18: =IF(A18=Deductions!$C$10,Deductions!$D$10,P17) -> 200 | R18: =IF(A18=Deductions!$C$11,Deductions!$D$11,R17) -> 200 | W18: =IF(A18=Deductions!B28,Deductions!C28,"") -> 112 | X18: =SUM(J18:W18) -> 16,012 | Y18: =SUM(I18-X18) -> 69,548 | AI18: February | AJ18: 71300
A19: DA Arrear | C19: 4,152 | I19: =SUM(B19:H19) -> 4,152 | K19: =IF('Master Sheet'!$E$5="NPS","",I19) -> 4,152 | L19: =IFERROR(IF('Master Sheet'!$E$5="GPF","",ROUND(SUM(B19:C19)*10%,0)),"") ->  | X19: =SUM(J19:W19) -> 4,152 | Y19: =SUM(I19-X19) -> 0
A20: DA Arrear | I20: =SUM(B20:H20) -> 0 | K20: =IF('Master Sheet'!$E$5="NPS","",I20) -> 0 | L20: =IFERROR(IF('Master Sheet'!$E$5="GPF","",ROUND(SUM(B20:C20)*10%,0)),"") ->  | X20: =SUM(J20:W20) -> 0 | Y20: =SUM(I20-X20) -> 0
A21: Bonus | B21: =IF('Master Sheet'!$D$11="Yes",ROUND(6774/12*'Master Sheet'!$E$11,0),"") ->  | I21: =SUM(B21:H21) -> 0 | X21: =SUM(J21:W21) -> 0 | Y21: =SUM(I21-X21) -> 0
A22: Surrender | B22: =ROUND(VLOOKUP($AI$6,$AI$7:$AJ$18,2,0)/2,0) -> 35,650 | C22: =ROUND(VLOOKUP($AI$6,Table1[[#All],[Month]:[DA Rate]],2,0)*B22,0) -> 4,278 | I22: =SUM(B22:H22) -> 39,928 | X22: =SUM(J22:W22) -> 0 | Y22: =SUM(I22-X22) -> 39,928
A23: Fixa. Arrear | I23: =SUM(B23:H23) -> 0 | L23: =IFERROR(IF('Master Sheet'!$E$5="GPF","",ROUND(SUM(B23:C23)*10%,0)),"") ->  | X23: =SUM(J23:W23) -> 0 | Y23: =SUM(I23-X23) -> 0
A24: Other | I24: =SUM(B24:H24) -> 0 | L24: =IFERROR(IF('Master Sheet'!$E$5="GPF","",ROUND(SUM(B24:C24)*10%,0)),"") ->  | X24: =SUM(J24:W24) -> 0 | Y24: =SUM(I24-X24) -> 0
A25: Salary Arrear1 | I25: =SUM(B25:H25) -> 0 | L25: =IFERROR(IF('Master Sheet'!$E$5="GPF","",ROUND(SUM(B25:C25)*10%,0)),"") ->  | X25: =SUM(J25:W25) -> 0 | Y25: =SUM(I25-X25) -> 0
A26: Salary Arrear2 | I26: =SUM(B26:H26) -> 0 | L26: =IFERROR(IF('Master Sheet'!$E$5="GPF","",ROUND(SUM(B26:C26)*10%,0)),"") ->  | X26: =SUM(J26:W26) -> 0 | Y26: =SUM(I26-X26) -> 0
A27: Total | B27: =SUM(B7:B26) -> 882,850 | C27: =SUM(C7:C26) -> 110,094 | D27: =SUM(D7:D26) -> 67,776 | E27: =SUM(E7:E26) -> 0 | F27: =SUM(F7:F26) -> 0 | G27: =SUM(G7:G26) -> 0 | H27: =SUM(H7:H26) -> 0 | I27: =SUM(I7:I26) -> 1,060,720 | J27: =SUM(J7:J26) -> 36,000 | K27: =SUM(K7:K26) -> 68,552 | L27: =SUM(L7:L26) -> 0 | M27: =SUM(M7:M26) -> 1,600 | N27: =SUM(N7:N26) -> 8,800 | O27: =SUM(O7:O26) -> 64,000 | P27: =SUM(P7:P26) -> 1,600 | Q27: =SUM(Q7:Q26) -> 220 | R27: =SUM(R7:R26) -> 1,600 | S27: 0 | T27: 0 | U27: 0 | V27: 0 | W27: =SUM(W7:W26) -> 1,278 | X27: =SUM(X7:X26) -> 183,650 | Y27: =SUM(Y7:Y26) -> 877,070 | Z27: 0
A30: Signature Of Employee | X30: Signature Of DDO
